[Event "2nd Serbia Open Masters 2022"]
[Site "Novi Sad"]
[Date "2022.07.02"]
[Round "5.43"]
[White "Shyaamnikhil P"]
[Black "Milosevic, Milos"]
[Result "1/2-1/2"]
[ECO "B90"]
[WhiteElo "2443"]
[BlackElo "2288"]
[Annotator "TA"]
[PlyCount "58"]
[EventDate "2022.06.28"]
[EventType "swiss"]
[EventCountry "SRB"]
[SourceTitle "playchess.com"]
[Source "ChessBase"]
[SourceQuality "1"]
[TimeControl "40/5400+30:900+30"]

{[%evp 17,58,4,33,-6,25,0,40,40,36,32,29,31,33,39,58,51,47,24,1,7,20,0,0,0,17,-8,19,-10,0,-3,0,0,-14,-39,27,32,4,0,55,0,0,0,58]} 1. e4 {[%emt 0:00:35]} c5 {[%emt 0:02:32]} 2. Nf3 {[%emt 0:01:01]} d6 {[%emt 0:02:03]} 3. Nc3 {[%emt 0:02:22]} a6 {[%emt 0:00:09]} 4. d4 {[%emt 0:01:50]} cxd4 {[%emt 0:00:05]} 5. Nxd4 {[%emt 0:00:03]} Nf6 {[%emt 0:00:03]} 6. Be3 {[%emt 0:03:45]} e5 {[%emt 0:00:16]} 7. Nf3 {[%emt 0:00:07]} Qc7 {[%emt 0:01:20]} 8. a4 {[%emt 0:00:23]} Be7 {[%emt 0:01:18]} 9. a5 {[%emt 0:02:51] 9.Be2 deserves study.} Nbd7 {[%emt 0:00:06]} 10. Bd3 {[%emt 0:08:00] B90: Sicilian Najdorf: Unusual White 6th moves, 6 Be3 Ng4 and 6 Be3 e5.} O-O {[%emt 0:01:30]} 11. O-O {[%emt 0:01:34]} b5 {[%emt 0:04:37]} 12. axb6 $1 {[%emt 0:00:55] White is slightly better.} Nxb6 {[%emt 0:00:03]} 13. Qe2 {[%emt 0:05:05][%cal Rd3a6]} a5 {[%emt 0:00:54] [#]} 14. Nb5 $146 {[%emt 0:05:14]} ({Predecessor:} 14. Nd2 Be6 15. Nb5 Qc6 16. c4 Rfb8 17. Rfc1 Nfd7 18. b3 Nc5 19. Bc2 Rf8 20. f3 {0-1 (38) Lis,M (2156)-Kawalko,A (1876) Szklarska Poreba 2019}) 14... Qb7 {[%emt 0:05:49]} 15. c4 {[%emt 0:04:25]} Bg4 {[%emt 0:04:11]} 16. h3 {[%emt 0:01:28]} Bh5 {[%emt 0:00:15]} 17. Bg5 {[%emt 0:00:59]} Rfd8 {[%emt 0:01:56]} 18. Rfe1 {[%emt 0:20:15]} h6 {[%emt 0:00:17]} 19. Bd2 {[%emt 0:01:37]} a4 {[%emt 0:00:24]} 20. Bb4 {[%emt 0:08:32]} Rac8 {[%emt 0:01:17]} 21. Rac1 {[%emt 0:03:42]} Rc6 {[%emt 0:03:37]} 22. Rc3 {[%emt 0:07:43]} Nfd7 {[%emt 0:00:32]} 23. Ra1 {[%emt 0:09:40]} Rdc8 {[%emt 0:01:48]} 24. g4 {[%emt 0:04:32]} Bg6 {[%emt 0:00:04]} 25. Ne1 {[%emt 0:01:49]} Nc5 {[%emt 0:04:07]} (25... Nf8 $15) 26. Bxc5 $11 {[%emt 0:00:10]} Rxc5 {[%emt 0:00:04]} 27. Ng2 {[%emt 0:00:51]} Nxc4 {[%emt 0:22:10]} 28. Rxc4 {[%emt 0:02:44]} ({White should try} 28. Bxc4 $14 Bxe4 {[#]} 29. Rxa4 $1 Bxg2 30. Ra7) 28... Qxb5 {[%emt 0:01:09]} 29. Rcxa4 {[%emt 0:00:15]} Rc1+ {[%emt 0:11:37] Weighted Error Value: White=0.13 (very precise) /Black=0.21 (precise)} (29... Qb3 $1 $11) 1/2-1/2

[Event "2nd Serbia Open Masters 2022"]
[Site "Novi Sad"]
[Date "2022.07.02"]
[Round "5.44"]
[White "Urazayev, Arystanbek"]
[Black "Baasansuren, Erdene"]
[Result "1-0"]
[ECO "B92"]
[WhiteElo "2445"]
[BlackElo "2243"]
[Annotator "TA"]
[PlyCount "182"]
[EventDate "2022.06.28"]
[EventType "swiss"]
[EventCountry "SRB"]
[SourceTitle "playchess.com"]
[Source "ChessBase"]
[SourceQuality "1"]
[TimeControl "40/5400+30:900+30"]

{[%evp 17,182,4,19,6,20,15,12,3,13,4,33,34,35,35,39,47,45,45,47,41,50,23,28,32,33,18,65,65,96,89,153,29,31,24,54,65,56,56,42,35,29,23,18,18,20,13,13,17,35,36,54,8,8,0,0,0,0,0,19,16,49,47,47,52,62,54,56,47,92,103,95,89,108,95,152,93,152,152,126,118,194,172,195,145,131,0,115,111,236,113,221,152,141,97,111,100,109,33,26,10,66,66,67,67,66,36,46,28,58,47,61,61,60,14,70,69,74,37,66,66,110,97,101,0,110,109,121,91,91,84,91,84,91,91,176,176,176,176,218,220,1656,1295,29968,29969,29972,29973,29973,29974,29972,29974,29974,29975,29976,29977,29978,29979,29979,29980,29980,29981,29982,29983,29989,29990,29990,29991,29991]} 1. e4 {[%emt 0:03:54]} c5 {[%emt 0:00:08]} 2. Nf3 {[%emt 0:00:07]} d6 {[%emt 0:00:20]} 3. d4 {[%emt 0:00:08]} cxd4 {[%emt 0:00:24]} 4. Nxd4 {[%emt 0:00:03]} Nf6 {[%emt 0:00:53]} 5. Nc3 {[%emt 0:00:06]} a6 {[%emt 0:00:21]} 6. Be2 {[%emt 0:00:08]} e5 {[%emt 0:02:55]} 7. Nb3 {[%emt 0:00:20]} Be7 {[%emt 0:00:31]} 8. Be3 {[%emt 0:00:07]} Be6 {[%emt 0:01:22]} 9. O-O {[%emt 0:00:09]} O-O {[%emt 0:02:08]} 10. Re1 {[%emt 0:00:06] B92: Sicilian Najdorf: 6 Be2.} Nc6 {[%emt 0:19:05]} 11. Bf3 {[%emt 0:00:25] 11.f3 is setting a new trend.} Rc8 {[%emt 0:06:47]} 12. Qd2 {[%emt 0:07:58] The position is equal.} Qc7 {[%emt 0:07:29]} 13. Rac1 {[%emt 0:08:34] [#]} b5 $146 {[%emt 0:05:21]} ({Predecessor:} 13... Nb8 14. a4 Nbd7 15. Red1 Rfd8 16. Qe1 h6 17. a5 b5 18. axb6 Nxb6 19. Ra1 Nc4 {½-½ (52) Pogonina,N (2501)-Huang,Q (2447) Ningbo 2010}) 14. Nd5 {[%emt 0:06:37]} Bxd5 {[%emt 0:03:37]} 15. exd5 {[%emt 0:00:03]} e4 {[%emt 0:06:22]} 16. Be2 {[%emt 0:10:29] This bishop pair is nice.} Ne5 {[%emt 0:00:06]} 17. c4 $36 {[%emt 0:04:05][%mdl 2048] White has some pressure.} Nxc4 {[%emt 0:20:04]} 18. Bxc4 {[%emt 0:00:11]} bxc4 {[%emt 0:00:01]} 19. Na5 {[%emt 0:00:29][%cal Bb3a5,Ba5c4,Bc4d6][%mdl 32] Inhibits Qb7.} Qd7 {[%emt 0:01:30]} 20. Nxc4 {[%emt 0:04:51]} Qf5 {[%emt 0:11:01]} 21. Red1 {[%emt 0:03:26]} Ng4 {[%emt 0:03:44]} (21... Rb8 $11 {was preferrable.}) 22. Bf4 $14 {[%emt 0:02:42]} Rfd8 {[%emt 0:01:07][%cal Bf8d8,Bd8c8,Bc8c2,Bc2b2,Bb2b3][%mdl 32]} 23. h3 $1 {[%emt 0:02:03]} Ne5 {[%emt 0:01:25]} (23... Nf6 $142) 24. Bxe5 {[%emt 0:02:44]} (24. Nxe5 $1 $16 Rxc1 25. Qxc1 dxe5 26. Qc7) 24... Bg5 $1 $11 {[%emt 0:01:53]} 25. Nxd6 {[%emt 0:16:30]} Qxe5 {[%emt 0:03:36]} 26. Rxc8 {[%emt 0:00:49]} Rxc8 {[%emt 0:00:17]} 27. Qb4 {[%emt 0:00:37]} Be7 {[%emt 0:00:31]} 28. Qb7 {[%emt 0:07:37]} Rc2 {[%emt 0:00:01]} 29. Qb3 {[%emt 0:00:56]} Rxb2 {[%emt 0:01:22]} 30. Nc4 $1 {[%emt 0:00:27][%csl LRb2,LRe5]} Rxb3 {[%emt 0:00:02]} 31. Nxe5 {[%emt 0:00:05][%mdl 4096] Endgame KRB-KRN} Rb6 {[%emt 0:00:16]} 32. Nc4 {[%emt 0:01:43]} Rb8 {[%emt 0:00:01]} 33. d6 {[%emt 0:00:30]} Bd8 {[%emt 0:01:32]} 34. Rd5 {[%emt 0:03:46]} (34. Ne5 $14) 34... f6 {[%emt 0:00:32]} 35. g4 {[%emt 0:02:25]} Kf7 {[%emt 0:00:24]} 36. Rd4 {[%emt 0:01:40]} Ke6 {[%emt 0:00:26]} 37. Kg2 {[%emt 0:02:55]} g6 {[%emt 0:00:45]} 38. Rxe4+ {[%emt 0:01:56]} Kd5 {[%emt 0:00:27]} 39. Kf3 {[%emt 0:00:20]} Rc8 {[%emt 0:00:30]} 40. Ne3+ {[%emt 0:00:00]} Kxd6 {[%emt 0:00:00]} 41. Re8 {[%emt 0:00:23]} Kd7 {[%emt 0:12:03]} 42. Rh8 {[%emt 0:00:08]} h5 {[%emt 0:00:32]} 43. gxh5 {[%emt 0:00:42]} gxh5 {[%emt 0:00:01]} 44. Rxh5 {[%emt 0:00:10]} Rc3 {[%emt 0:01:06]} 45. Rd5+ {[%emt 0:02:07]} Ke7 {[%emt 0:02:05]} (45... Ke8 $142) 46. Ke4 {[%emt 0:00:27]} (46. Kg4 $142 $1) 46... Bb6 {[%emt 0:02:17]} ({Black should try} 46... Ra3) 47. Rd3 $1 $16 {[%emt 0:04:15]} Rc6 {[%emt 0:00:00]} 48. Nd5+ {[%emt 0:00:20]} Kf7 {[%emt 0:01:32]} (48... Ke6 $16) 49. f4 $1 $18 {[%emt 0:00:39]} Bd8 {[%emt 0:00:36]} 50. Kf5 {[%emt 0:03:22]} (50. Rc3 $18 Rxc3 51. Nxc3) 50... Rc5 $16 {[%emt 0:00:10]} 51. Ke4 {[%emt 0:02:20]} (51. h4 $16) 51... Rc4+ {[%emt 0:00:38]} (51... Rc6 $1 $11) 52. Rd4 $1 {[%emt 0:00:15]} Rc2 {[%emt 0:00:42]} (52... Rc8 $16 {was necessary.} 53. Rb4 Kg6) 53. Nb4 {[%emt 0:01:34]} (53. Ne3 $18 Rc8 54. Rd6) 53... Rb2 {[%emt 0:00:21]} (53... Rc8 $16) 54. Nd3 {[%emt 0:01:09]} (54. Rxd8 $6 Rxb4+ 55. Rd4 Rb6 $16) (54. Nxa6 $6 Rxa2 55. Nb4 (55. Rxd8 Rxa6 56. Kf5 Ra5+ 57. Kg4 Kg6 $16) 55... Rb2 $16) 54... Rb8 {[%emt 0:00:35]} 55. f5 {[%emt 0:01:17]} Be7 {[%emt 0:00:27]} 56. Rd7 {[%emt 0:01:03]} Rb5 {[%emt 0:00:29]} 57. Ra7 {[%emt 0:00:31]} (57. Rd5 $16 {Black must now prevent Rxb5.} Rb8 58. Ra5) 57... Ra5 $14 {[%emt 0:00:23]} 58. Nf4 {[%emt 0:04:58]} Re5+ {[%emt 0:00:45]} ({Black should play} 58... Ra4+ $1 $11 59. Ke3 Ra3+ 60. Ke4 Ra4+ 61. Kf3 Ra3+ 62. Kg4 Ra4) 59. Kd4 {[%emt 0:01:09]} Ke8 $1 {[%emt 0:00:30] Hoping for ...Bc5+.} 60. Nd5 {[%emt 0:02:08]} ({Don't play} 60. Rxa6 Rxf5 61. Ke4 Re5+ 62. Kd4 Rf5 $16) 60... Bd8 {[%emt 0:00:24]} 61. Rxa6 {[%emt 0:01:50] Threatens to win with Re6+. White is more active.} Rxf5 {[%emt 0:00:01]} 62. Kc5 {[%emt 0:01:16] Strongly threatening Kd6.} Rh5 {[%emt 0:01:00]} 63. Re6+ {[%emt 0:00:51]} Kd7 {[%emt 0:00:31]} 64. Re3 $1 {[%emt 0:00:19]} Rh4 {[%emt 0:00:35]} 65. Rf3 {[%emt 0:01:16]} (65. Rd3 $14) 65... Ke6 {[%emt 0:00:27]} (65... Ra4 $11) 66. Nf4+ $1 {[%emt 0:00:12]} Kd7 {[%emt 0:00:29]} 67. Rd3+ {[%emt 0:00:16]} Kc8 {[%emt 0:00:15]} 68. Nd5 {[%emt 0:00:52]} Kb7 {[%emt 0:00:46]} 69. Rb3+ {[%emt 0:00:21]} Kc8 {[%emt 0:00:24]} 70. Rd3 {[%emt 0:00:29]} Kb7 $1 {[%emt 0:00:12]} 71. Kd6 {[%emt 0:00:07] White stays focused until the end.} Ra4 {[%emt 0:00:49]} 72. Kd7 {[%emt 0:00:31]} Ba5 {[%emt 0:00:08]} 73. a3 {[%emt 0:00:28]} f5 {[%emt 0:00:44]} 74. Rb3+ {[%emt 0:00:26]} Ka6 {[%emt 0:00:38]} 75. Nc7+ {[%emt 0:00:44]} Bxc7 {[%emt 0:00:18]} (75... Ka7 $16) 76. Kxc7 $16 {[%emt 0:00:02] KR-KR} f4 {[%emt 0:00:38] [#]} 77. Rf3 $1 {[%emt 0:01:34]} Re4 {[%emt 0:00:23]} 78. h4 {[%emt 0:00:03][%cal Bh3h4,Bh4h5,Bh5h6,Bh6h7][%mdl 32] aiming for Kd6.} Re3 $2 {[%emt 0:00:44]} (78... Rd4 79. Kc6 (79. h5 Rd5 $11) 79... Ka7) 79. Rxf4 $18 {[%emt 0:00:10]} Rxa3 {[%emt 0:00:18]} 80. h5 {[%emt 0:01:04] White mates.} Rc3+ {[%emt 0:00:26]} 81. Kd7 {[%emt 0:00:12]} Rh3 {[%emt 0:00:43]} 82. Rf6+ {[%emt 0:00:04]} Kb5 {[%emt 0:00:35]} 83. h6 {[%emt 0:00:04]} Kc5 {[%emt 0:00:33]} 84. Ke6 {[%emt 0:00:36]} Kd4 {[%emt 0:00:30]} 85. Kf7 {[%emt 0:00:37]} Ke5 {[%emt 0:00:28]} 86. Kg7 {[%emt 0:00:37]} Rh1 {[%emt 0:00:31]} 87. Rg6 {[%emt 0:00:43]} Ra1 {[%emt 0:00:31]} 88. h7 {[%emt 0:00:19]} Ra7+ {[%emt 0:00:29] [#]} 89. Kh6 $1 {[%emt 0:00:08]} Ra8 {[%emt 0:00:28]} 90. Rg8 {[%emt 0:00:06]} Ra6+ {[%emt 0:00:32]} 91. Kg5 {[%emt 0:00:07]} Kd5 {[%emt 0:01:02] Weighted Error Value: White=0.17 (very precise) /Black=0.21 (precise)} 1-0

[Event "2nd Serbia Open Masters 2022"]
[Site "Novi Sad"]
[Date "2022.07.02"]
[Round "5.45"]
[White "Jain Kashish Manoj"]
[Black "Milikow, Elie"]
[Result "1-0"]
[ECO "B30"]
[WhiteElo "2271"]
[BlackElo "2428"]
[Annotator "TA"]
[PlyCount "174"]
[EventDate "2022.06.28"]
[EventType "swiss"]
[EventCountry "SRB"]
[SourceTitle "playchess.com"]
[Source "ChessBase"]
[SourceQuality "1"]
[TimeControl "40/5400+30:900+30"]

{[%evp 12,174,25,23,28,19,30,-15,0,0,0,-17,0,-19,54,42,33,0,0,-19,0,-19,0,-4,39,10,79,62,81,35,52,50,53,45,60,62,58,55,64,68,62,58,60,68,229,215,218,213,247,223,185,211,220,220,219,206,218,206,198,67,63,68,118,66,165,173,354,112,105,0,120,124,264,256,322,333,445,452,463,458,470,379,381,377,372,373,639,627,597,451,416,0,574,566,812,343,433,433,462,472,452,417,362,350,954,711,1094,1086,903,643,29984,29985,29985,29986,29986,29987,29990,29984,29984,29975,29975,29976,29976,29972,29977,29978,29977,29978,29983,29981,29981,29982,29982,29983,29983,29984,29984,29985,29985,29986,29986,29987,29987,29984,29984,29977,29959,0,29984,29985,29986,29987,29986,29986,29988,29989,29995,29994,29994,29994,29995,29995,29996,29997,29997]} 1. e4 {[%emt 0:00:08]} c5 {[%emt 0:00:12]} 2. Nf3 {[%emt 0:00:08]} Nc6 {[%emt 0:00:14]} 3. Bb5 {[%emt 0:00:10]} e6 {[%emt 0:00:13]} 4. O-O {[%emt 0:00:12]} Nge7 {[%emt 0:00:09]} 5. b3 {[%emt 0:00:58]} Nd4 {[%emt 0:13:15]} 6. Nxd4 {[%emt 0:00:31]} cxd4 {[%emt 0:00:08]} 7. Bb2 {[%emt 0:00:28]} a6 {[%emt 0:00:46] B30: Sicilian: 2...Nc6 3 Bb5, lines without ...g6.} 8. Be2 {[%emt 0:00:07]} Nc6 {[%emt 0:00:20]} 9. f4 {[%emt 0:00:24] [#]} g6 $146 {[%emt 0:04:00] The position is equal.} ({Predecessor:} 9... Bc5 10. d3 O-O 11. Nd2 d5 12. Kh1 b6 13. a3 a5 14. Qe1 dxe4 15. dxe4 Bb7 {1-0 (31) Vachier Lagrave,M (2784)-Carlsen,M (2862) chess24.com INT 2021}) 10. d3 {[%emt 0:07:55]} Bg7 {[%emt 0:01:11]} 11. Nd2 {[%emt 0:01:05]} d6 $1 {[%emt 0:01:57] Prevents e5.} 12. Qe1 {[%emt 0:03:39]} Nb4 {[%emt 0:17:04]} (12... O-O $11) 13. Bd1 $1 $14 {[%emt 0:01:57]} Nc6 {[%emt 0:11:42] Inhibits e5.} 14. Nf3 {[%emt 0:01:13]} O-O {[%emt 0:11:12]} 15. Kh1 {[%emt 0:03:00]} f5 {[%emt 0:35:37]} 16. Nd2 {[%emt 0:29:32]} e5 {[%emt 0:00:00]} 17. exf5 {[%emt 0:03:57]} gxf5 {[%emt 0:00:00]} 18. Bf3 {[%emt 0:02:30]} Re8 {[%emt 0:00:00]} (18... Nb4 $11 {remains equal.}) 19. Qf2 {[%emt 0:10:50]} (19. Qg3 {feels hotter.} Nb4 20. Nc4 Nxc2 21. Rac1) 19... Nb4 {[%emt 0:00:00]} 20. Rfc1 {[%emt 0:08:06]} (20. Nc4 $16) 20... Rb8 {[%emt 0:00:41]} 21. a3 {[%emt 0:01:38]} Nc6 {[%emt 0:00:01]} 22. Re1 {[%emt 0:02:01]} Be6 {[%emt 0:00:51]} 23. Re2 {[%emt 0:02:43]} Qd7 {[%emt 0:01:41]} 24. Rae1 {[%emt 0:00:48][%cal Ba1e1,Be1e5,Be5f5][%mdl 32]} Bf7 {[%emt 0:00:34]} 25. fxe5 {[%emt 0:02:27]} dxe5 {[%emt 0:00:01]} 26. Nc4 $1 {[%emt 0:00:10]} Bxc4 {[%emt 0:00:42]} 27. bxc4 {[%emt 0:00:06]} Ne7 $2 {[%emt 0:00:24] Prevents Bd5+.} (27... b5 $14) 28. Rxe5 $18 {[%emt 0:04:08]} Bxe5 {[%emt 0:00:06]} 29. Rxe5 {[%emt 0:00:02]} Rbd8 {[%emt 0:00:40]} 30. h4 {[%emt 0:01:45]} Qd6 {[%emt 0:00:33]} 31. Qe1 {[%emt 0:02:50] And now Re6 would win.} Kf7 {[%emt 0:01:08] Inhibits Re6.} 32. Bc1 {[%emt 0:01:09] Hoping for Bg5.} (32. Bxb7 Qb6 33. Bd5+ (33. Qb4 $2 Qc7 $19) 33... Nxd5 34. cxd5 Qxb2 $11) 32... Ng6 {[%emt 0:00:31]} 33. Rxf5+ {[%emt 0:01:53]} Kg7 {[%emt 0:00:17][%cal Re8e1]} 34. Be4 {[%emt 0:00:31] The board is on fire.} Re5 {[%emt 0:00:39]} 35. h5 {[%emt 0:02:49]} (35. Bf4 Nxf4 36. Rxf4 Ree8 $16) (35. Rf3 $18) 35... Rxf5 $14 {[%emt 0:00:05]} 36. Bxf5 {[%emt 0:00:01]} Qe5 {[%emt 0:00:45]} ({Black should play} 36... Rf8 $14 37. Be4 Ne5) 37. Qf2 {[%emt 0:04:21]} (37. Qxe5+ $16 Nxe5 38. g4) 37... Rf8 {[%emt 0:00:11]} (37... Qf6 $1 $14) 38. g4 $36 {[%emt 0:00:01][%mdl 2048] Keeping Black busy.} Ne7 $2 {[%emt 0:00:29]} (38... Rxf5 {might work better.} 39. gxf5 Ne7) 39. Bf4 $2 {[%emt 0:00:01]} (39. h6+ $1 $18 {and the rest is easy.} Kh8 40. Bf4) 39... Qf6 $16 {[%emt 0:00:48]} 40. Qh2 {[%emt 0:00:00] White is more active.} (40. h6+ Kf7 41. Kh2 (41. Bxh7 $2 Ke8 $17) 41... Nxf5 42. gxf5 Rg8 $19) ({White must play} 40. Qe1 $1 $16 {Be5 is the strong threat.} Qc6+ 41. Be4) 40... Kg8 {[%emt 0:00:00] [#]} (40... Nxf5 $2 41. Be5 Ne7 42. g5 Qxe5 43. Qxe5+ $18) (40... Kf7 $1 $11 {keeps the balance.} 41. Be5 (41. Bxh7 $2 Ke8 $19) 41... Qg5) 41. Be5 $1 {[%emt 0:01:56] Black is now going downhill.} Qc6+ {[%emt 0:06:26]} (41... Qb6 $16) 42. Be4 $18 {[%emt 0:01:13] This bishop pair is nice.} Qb6 {[%emt 0:06:55]} 43. Qg3 {[%emt 0:13:05]} Qb1+ {[%emt 0:01:25] [#]} 44. Kh2 $1 {[%emt 0:00:01] Strongly threatening Bd6.} Qxc2+ {[%emt 0:00:15]} 45. Kh3 {[%emt 0:00:04] Threatens to win with Bd6.} Qf2 {[%emt 0:02:42]} 46. Bd6 {[%emt 0:01:06]} Qf1+ {[%emt 0:01:02]} 47. Bg2 {[%emt 0:00:08]} Qe2 {[%emt 0:00:21]} 48. Bxb7 {[%emt 0:02:30]} Rf6 $2 {[%emt 0:00:36]} (48... Re8 49. Be4 (49. Bxa6 Ng6 $11) 49... Qf1+ 50. Kh2 Qe2+ 51. Qg2 Qe3) 49. Be4 {[%emt 0:01:54]} Qf1+ {[%emt 0:00:21]} 50. Bg2 {[%emt 0:00:01]} Qe2 {[%emt 0:00:22]} 51. Be4 {[%emt 0:01:37]} Qf1+ $1 {[%emt 0:00:08]} 52. Kh4 {[%emt 0:00:31]} Re6 {[%emt 0:00:46]} 53. c5 {[%emt 0:00:46]} (53. Bxe7 $142 {Bd5 would kill now.} Rxe7 54. Qb8+ Kf7 55. Bd5+ Re6 56. h6 Qf6+ 57. g5 Qf2+ 58. Qg3) 53... Qf6+ {[%emt 0:00:45]} 54. Kh3 {[%emt 0:00:05]} Qf1+ {[%emt 0:00:23]} 55. Qg2 {[%emt 0:00:13]} Qe1 {[%emt 0:00:43]} 56. Qf3 {[%emt 0:00:17]} ({Weaker is} 56. Qa2 Qf1+ 57. Kg3 Qe1+ 58. Kg2 Kf7 $18) 56... h6 {[%emt 0:00:37]} 57. Bg3 {[%emt 0:01:22]} Qd2 {[%emt 0:00:27]} (57... Qe3 58. Kg2 Qc1) 58. c6 {[%emt 0:00:26][%cal Oe4g6] White threatens Bg6! and mate.} Qg5 {[%emt 0:00:35] Inhibits Bg6.} 59. c7 {[%emt 0:00:17]} Kg7 {[%emt 0:00:21] [#]} 60. Bd5 $1 {[%emt 0:01:01][%mdl 512]} Rf6 {[%emt 0:00:02] [#]} (60... Qe3 61. c8=Q) 61. Qe4 $1 {[%emt 0:00:09][%csl LRd4,LRe7]} Qe3 {[%emt 0:00:35] [#]} 62. Qxe7+ $3 {[%emt 0:00:27][%mdl 512]} Qxe7 {[%emt 0:00:05]} 63. c8=Q {[%emt 0:00:03][%csl Gd5][%cal Rc8g8]} Rf8 {[%emt 0:00:17]} 64. Qxa6 {[%emt 0:00:27]} Rf6 {[%emt 0:00:05]} 65. Qb7 {[%emt 0:00:16]} Qxb7 {[%emt 0:00:11]} 66. Bxb7 {[%emt 0:00:04]} Rb6 {[%emt 0:00:10]} 67. Be4 {[%emt 0:00:36]} Ra6 {[%emt 0:00:04]} 68. Be5+ {[%emt 0:00:05]} Kf7 {[%emt 0:00:10]} 69. Bxd4 {[%emt 0:00:13]} Rxa3 {[%emt 0:00:11]} 70. Bg6+ {[%emt 0:00:01]} Kg8 {[%emt 0:00:12]} 71. g5 {[%emt 0:00:18]} Ra4 {[%emt 0:00:30]} 72. Be5 {[%emt 0:00:43]} hxg5 {[%emt 0:00:07]} 73. Be4 {[%emt 0:00:05]} Ra5 {[%emt 0:00:40]} 74. d4 {[%emt 0:00:02]} Ra6 {[%emt 0:00:30]} 75. Kg4 {[%emt 0:00:01]} Kf7 {[%emt 0:01:55]} 76. Kxg5 {[%emt 0:00:06]} Ra1 {[%emt 0:00:09]} 77. Bg6+ {[%emt 0:00:19]} Ke6 {[%emt 0:00:06]} 78. Kh6 {[%emt 0:00:11]} Ra7 {[%emt 0:00:18]} 79. Kg5 {[%emt 0:00:12]} Ra1 $1 {[%emt 0:00:06]} 80. Bf5+ {[%emt 0:00:03] White mates.} Kf7 {[%emt 0:01:07]} 81. h6 {[%emt 0:00:05]} Rg1+ {[%emt 0:00:09]} 82. Kf4 {[%emt 0:00:05]} Ke7 {[%emt 0:00:28]} 83. h7 {[%emt 0:00:06]} Rg8 {[%emt 0:00:03]} 84. Bf6+ {[%emt 0:00:33]} Kf8 {[%emt 0:00:21]} 85. hxg8=Q+ {[%emt 0:00:12]} Kxg8 {[%emt 0:00:05]} 86. Bg6 {[%emt 0:00:10]} Kf8 {[%emt 0:00:05]} 87. d5 {[%emt 0:00:03]} Kg8 {[%emt 0:00:36] Weighted Error Value: White=0.39/Black=0.51} 1-0

[Event "2nd Serbia Open Masters 2022"]
[Site "Novi Sad"]
[Date "2022.07.02"]
[Round "5.46"]
[White "Gan-Erdene, Sugar"]
[Black "Mihov, Filip"]
[Result "1/2-1/2"]
[ECO "C18"]
[WhiteElo "2419"]
[BlackElo "2235"]
[Annotator "TA"]
[PlyCount "89"]
[EventDate "2022.06.28"]
[EventType "swiss"]
[EventCountry "SRB"]
[SourceTitle "playchess.com"]
[Source "ChessBase"]
[SourceQuality "1"]
[TimeControl "40/5400+30:900+30"]

{[%evp 15,89,0,0,-18,-12,-31,-33,-37,-35,-45,-40,-40,-15,-17,-22,-38,-40,-58,-28,-15,21,16,30,-8,-8,-24,-18,-7,-21,-14,-12,-20,-17,-31,-11,0,-10,-12,0,0,0,0,0,0,0,0,16,9,10,0,4,5,26,20,22,7,7,0,17,17,46,30,37,28,63,0,0,0,0,0,0,0,0,0,0,0]} 1. e4 {[%emt 0:00:03]} e6 {[%emt 0:00:06]} 2. d4 {[%emt 0:00:06]} d5 {[%emt 0:00:05]} 3. Nc3 {[%emt 0:00:07]} Bb4 {[%emt 0:00:47]} 4. e5 {[%emt 0:00:14]} c5 {[%emt 0:00:45]} 5. a3 {[%emt 0:00:20]} Bxc3+ {[%emt 0:00:08]} 6. bxc3 {[%emt 0:00:05]} Qa5 {[%emt 0:01:05]} 7. Bd2 {[%emt 0:08:16]} Qa4 {[%emt 0:00:10]} 8. Nf3 {[%emt 0:13:28]} b6 $1 {[%emt 0:00:25] The main line 8...b6 scores better than 8...Nc6.} 9. Bd3 {[%emt 0:27:53] C18: French: 3 Nc3 Bb4: Main line: 7 h4 and 7 Qg4.} Ba6 {[%emt 0:01:21]} 10. O-O {[%emt 0:01:52]} Ne7 {[%emt 0:02:33]} 11. Bg5 {[%emt 0:01:24] Black is slightly better.} Nbc6 {[%emt 0:01:58] [#]} 12. dxc5 $146 {[%emt 0:03:05]} ({Predecessor:} 12. Qd2 Bxd3 13. Qxd3 h6 14. Bxe7 Nxe7 15. Rab1 Rc8 16. Rfc1 O-O 17. Nd2 Rc7 18. dxc5 Rxc5 {½-½ (47) Marosi,L (2174)-Domingo Nunez,R (2339) Porto Carras 2015}) 12... bxc5 {[%emt 0:07:47]} 13. Be3 {[%emt 0:01:46]} Bxd3 {[%emt 0:04:09]} (13... c4 $5 {[%cal Rc4d3]} 14. Be2 Qa5 $15) 14. cxd3 {[%emt 0:01:03]} Qa5 {[%emt 0:01:12]} 15. Qc2 {[%emt 0:06:00]} O-O {[%emt 0:02:29]} 16. c4 {[%emt 0:01:36]} Rfd8 {[%emt 0:03:55]} (16... d4 $5 {[%cal Rd4e3]} 17. Bd2 Qc7 $15) 17. Rfb1 {[%emt 0:02:33]} dxc4 {[%emt 0:08:35]} 18. Qxc4 {[%emt 0:03:50]} Nd4 {[%emt 0:01:11] Against Rb5} 19. Nxd4 {[%emt 0:09:12]} cxd4 {[%emt 0:00:08]} 20. Bg5 {[%emt 0:00:06]} ({But not} 20. Bxd4 Rac8 21. Qb4 Qxb4 22. Rxb4 Nc6 $17) 20... Rdc8 {[%emt 0:06:20]} 21. Qxd4 {[%emt 0:08:08]} Nc6 {[%emt 0:01:35][%cal Be7c6,Bc6e5,Be5d7][%mdl 32]} 22. Qe4 {[%emt 0:00:32]} Nxe5 {[%emt 0:03:38]} 23. Bf4 {[%emt 0:02:46]} Nd7 {[%emt 0:03:17]} 24. Qf3 {[%emt 0:01:33]} Nb6 {[%emt 0:03:04]} 25. Qg3 {[%emt 0:00:49]} Qf5 {[%emt 0:02:51]} 26. Be5 {[%emt 0:01:09][%csl Ge5][%cal Rg3g7] [#]} f6 {[%emt 0:03:18]} 27. Bd4 {[%emt 0:01:27]} e5 {[%emt 0:00:52]} 28. Bxb6 {[%emt 0:00:35]} axb6 {[%emt 0:00:02]} 29. Qe3 {[%emt 0:00:36]} Rc6 {[%emt 0:23:47]} 30. Rxb6 {[%emt 0:00:28]} Rxb6 {[%emt 0:00:09]} 31. Qxb6 {[%emt 0:00:04]} Qxd3 $11 {[%emt 0:00:09][%mdl 4096] Endgame KQR-KQR} 32. Qe6+ {[%emt 0:01:10]} Kh8 {[%emt 0:00:32]} 33. Qc6 {[%emt 0:01:37]} Qd8 {[%emt 0:07:44][%cal Oa8a3]} 34. a4 {[%emt 0:00:44]} h6 {[%emt 0:00:25]} 35. Rc1 {[%emt 0:01:29]} Qa5 {[%emt 0:01:06]} 36. Ra1 {[%emt 0:00:46]} Rb8 {[%emt 0:03:11]} 37. g3 {[%emt 0:00:19]} Rb4 {[%emt 0:03:54]} 38. Qc8+ {[%emt 0:00:12]} Kh7 {[%emt 0:00:06]} 39. Qf5+ {[%emt 0:00:05]} Kh8 {[%emt 0:00:35]} 40. Qc8+ {[%emt 0:00:00]} (40. Rc1 $14 Rb8 41. Rc8+ Rxc8 42. Qxc8+ Kh7 43. Qc4) 40... Kh7 {[%emt 0:05:06] The position is equal.} 41. Rc1 {[%emt 0:13:03] [#] White threatens Qf5+ and mate.} Rxa4 {[%emt 0:04:30]} 42. Qf5+ {[%emt 0:00:22]} Kg8 {[%emt 0:00:01]} 43. Qe6+ {[%emt 0:02:30]} Kh7 {[%emt 0:00:11]} 44. Qf5+ {[%emt 0:01:11]} Kg8 {[%emt 0:00:02]} 45. Qe6+ {[%emt 0:00:53] Weighted Error Value: White=0.08 (flawless) /Black=0.07 (flawless)} 1/2-1/2